bitfinex/quotes_BTCUSD_20240820
["timestamp","ask_amount","ask_price","bid_price","bid_amount"]
[1724143424433,0.09916511,60879.0,60876.0,0.18683371]
[1724143424645,0.00826,60894.0,60886.0,0.2798]
[1724143425121,0.00826,60894.0,60877.0,0.53706982]
[1724143425122,0.17209371,60894.0,60880.0,0.2798]
[1724143425325,0.17209371,60894.0,60877.0,0.53706982]
[1724143425326,0.16383371,60893.0,60877.0,0.53706982]
[1724143425542,0.32805571,60893.0,60877.0,0.53706982]
[1724143425754,0.001,60879.0,60877.0,0.53706982]
[1724143425968,0.001,60879.0,60877.0,0.1]
[1724143426190,0.0809,60890.0,60875.0,0.1009075]
[1724143426603,0.0809,60890.0,60877.0,0.002]
[1724143427026,0.0809,60890.0,60875.0,0.1009075]
[1724143427448,0.001,60879.0,60877.0,0.011]
[1724143428532,0.001,60879.0,60877.0,0.023]
[1724143428748,0.0809,60890.0,60877.0,0.012]
[1724143428954,0.24513,60890.0,60877.0,0.018]
[1724143429164,0.24613,60890.0,60877.0,0.018]
[1724143429600,0.24513,60890.0,60877.0,0.012]
[1724143429803,0.24513,60890.0,60875.0,0.1009075]
[1724143430008,0.001,60879.0,60877.0,0.013]
[1724143430427,0.24513,60890.0,60875.0,0.1009075]
[1724143430854,0.24613,60890.0,60877.0,0.007]
[1724143431543,0.24613,60890.0,60877.0,0.0079075]
[1724143431753,0.246955,60890.0,60877.0,0.0079075]
[1724143432602,0.164233,60889.0,60877.0,0.0009075]
[1724143432811,0.001,60879.0,60877.0,0.0129075]
[1724143433460,0.24344119,60890.0,60877.0,0.0129075]
[1724143433677,0.24344119,60890.0,60877.0,0.0009075]
[1724143433886,0.24444119,60890.0,60877.0,0.0079075]
[1724143434308,0.164233,60889.0,60877.0,0.0079075]
[1724143434944,0.24443919,60890.0,60877.0,0.0079075]
[1724143435394,0.164233,60889.0,60878.0,0.03617322]
[1724143435601,0.0608,60888.0,60878.0,0.03617322]
[1724143436225,0.0608,60888.0,60879.0,0.04521652]
[1724143436457,0.0608,60888.0,60880.0,0.03617322]
[1724143436673,0.0608,60888.0,60881.0,0.03617322]
[1724143436895,0.0608,60888.0,60882.0,0.03617322]
[1724143437122,0.0608,60888.0,60883.0,0.03617322]
[1724143437331,0.0608,60888.0,60884.0,0.03617322]
[1724143437555,0.0608,60888.0,60877.0,0.1009075]
[1724143437556,0.0618,60888.0,60885.0,0.03617322]
[1724143437811,0.0618,60888.0,60879.0,0.009]
[1724143438025,0.0618,60888.0,60880.0,0.03617322]
[1724143438239,0.0618,60888.0,60881.0,0.04521652]
[1724143438451,0.0618,60888.0,60882.0,0.04521651]
[1724143438662,0.0618,60888.0,60883.0,0.03617321]
[1724143438873,0.0608,60888.0,60884.0,0.03617321]
[1724143439050,0.0608,60888.0,60885.0,0.03617321]
[1724143439284,0.0618,60888.0,60886.0,0.03617321]
[1724143439498,0.0618,60888.0,60887.0,0.03617321]
[1724143439912,0.0608,60888.0,60887.0,0.03617321]
[1724143440308,0.001,60888.0,60887.0,0.03617321]
[1724143440812,0.07920919,60890.0,60887.0,0.03617321]
[1724143441032,0.000825,60890.0,60888.0,0.03617321]
[1724143441238,0.000825,60890.0,60885.0,0.00904297]
[1724143441465,0.000825,60890.0,60886.0,0.04521484]
[1724143441674,0.000825,60890.0,60884.0,0.002]
[1724143441675,0.000825,60890.0,60887.0,0.04521484]
[1724143441883,0.000825,60890.0,60888.0,0.10579558]
[1724143442098,0.000825,60890.0,60883.0,0.0626]
[1724143442099,0.000825,60890.0,60889.0,0.10579471]
[1724143442312,0.000825,60890.0,60889.0,0.04521397]
[1724143442526,0.000825,60890.0,60889.0,0.10579471]
[1724143442740,0.000825,60890.0,60889.0,0.04521397]
[1724143442955,0.000825,60890.0,60889.0,0.10579471]
[1724143443170,0.001825,60890.0,60889.0,0.04521397]
[1724143443591,0.001825,60890.0,60889.0,0.10879471]
[1724143443805,0.000825,60890.0,60889.0,0.04821397]
[1724143444056,0.001825,60890.0,60889.0,0.11879471]
[1724143444265,0.001825,60890.0,60889.0,0.05821397]
[1724143445319,0.001825,60890.0,60889.0,0.11878782]
[1724143445526,0.001825,60890.0,60889.0,0.05821021]
[1724143447231,0.079725,60890.0,60889.0,0.05821021]
[1724143447447,0.079725,60890.0,60889.0,0.04916817]
[1724143449619,0.079725,60890.0,60889.0,0.013]
[1724143449839,0.079725,60890.0,60889.0,0.04917148]
[1724143450054,0.079725,60890.0,60889.0,0.04917135]
[1724143453807,0.079725,60890.0,60889.0,0.0491713]
[1724143454881,0.079725,60890.0,60889.0,0.04917129]
[1724143459783,0.306455,60890.0,60889.0,0.04917129]
[1724143460209,0.963377,60890.0,60889.0,0.013]
[1724143462588,0.306455,60890.0,60889.0,0.013]
[1724143462798,0.634916,60890.0,60889.0,0.013]
[1724143463004,0.634916,60890.0,60889.0,0.04917138]
[1724143464143,0.001825,60890.0,60889.0,0.25899083]
[1724143464369,0.001825,60890.0,60889.0,0.72307592]
[1724143464597,0.00826,60894.0,60889.0,0.81147739]
[1724143464810,0.00826,60894.0,60893.0,0.2798]
[1724143465026,0.00826,60894.0,60893.0,0.65125935]
[1724143465256,0.00826,60894.0,60893.0,0.40928967]
[1724143465880,0.00826,60894.0,60893.0,0.1436772]
[1724143466105,0.00826,60894.0,60893.0,0.50776229]
[1724143466521,0.00926,60894.0,60893.0,0.52076294]
[1724143467000,0.00926,60894.0,60893.0,0.66186294]
[1724143467229,0.00926,60894.0,60893.0,0.72396045]
[1724143467713,0.00926,60894.0,60893.0,0.72096045]
[1724143467714,0.00826,60894.0,60893.0,0.72096045]
[1724143467915,0.00826,60894.0,60893.0,0.71096045]
[1724143468136,0.00826,60894.0,60893.0,0.7249249]
[1724143468350,0.00826,60894.0,60893.0,0.67535477]
[1724143468553,0.00826,60894.0,60893.0,0.7219249]
[1724143468761,0.00826,60894.0,60893.0,0.82518848]
[1724143468989,0.00826,60894.0,60893.0,0.89975861]
[1724143469226,0.00826,60894.0,60893.0,0.83918848]
[1724143469954,0.00826,60894.0,60893.0,1.72086861]
[1724143470203,0.0002,60899.0,60898.0,0.3612]
[1724143470456,0.0002,60899.0,60898.0,1.18801114]
[1724143470711,0.0002,60899.0,60898.0,0.61345713]
[1724143470949,0.0002,60899.0,60898.0,0.08528317]
[1724143471193,0.0002,60899.0,60898.0,0.03615125]
[1724143471682,0.0002,60899.0,60897.0,0.03615125]
[1724143471921,0.0002,60899.0,60893.0,0.08769536]
[1724143471922,0.0002,60899.0,60898.0,0.014]
[1724143472131,0.0002,60899.0,60895.0,0.03615125]
[1724143472342,0.0002,60899.0,60898.0,0.007]
[1724143472791,0.0002,60899.0,60898.0,0.1038]
[1724143473010,0.0002,60899.0,60898.0,0.23995125]
[1724143473258,0.0002,60899.0,60898.0,0.30605125]
[1724143473726,0.0002,60899.0,60898.0,0.2629]
[1724143473950,0.0002,60899.0,60898.0,0.29906073]
[1724143474174,0.0002,60899.0,60898.0,0.29906028]
[1724143474637,0.0002,60899.0,60898.0,0.28506028]
[1724143474872,0.0002,60899.0,60898.0,0.29206028]
[1724143475146,0.0002,60899.0,60898.0,0.30106028]
[1724143475644,0.0002,60899.0,60898.0,0.29206028]
[1724143475870,0.0002,60899.0,60898.0,0.28506028]
[1724143476539,0.0002,60899.0,60898.0,0.29806028]
[1724143477205,0.0002,60899.0,60898.0,0.31106028]
[1724143477957,0.0002,60899.0,60898.0,0.29806028]
[1724143478181,0.0002,60899.0,60898.0,0.29806029]
[1724143478404,0.0002,60899.0,60898.0,0.31206029]
[1724143479278,0.0002,60899.0,60898.0,0.2759]
[1724143481406,0.0002,60899.0,60898.0,0.31206029]
[1724143482042,0.0002,60899.0,60898.0,0.2759]
[1724143482253,0.0002,60899.0,60898.0,0.3120603]
[1724143482752,0.00826,60900.0,60898.0,0.77424916]
[1724143482960,0.00826,60900.0,60899.0,0.20979074]
[1724143483403,0.00826,60900.0,60899.0,0.18524774]
[1724143483815,0.00826,60900.0,60899.0,0.18853159]
[1724143484057,0.00826,60900.0,60899.0,0.35236524]
[1724143484295,0.00826,60900.0,60899.0,0.36108145]
[1724143485218,0.00826,60900.0,60899.0,0.34908145]
[1724143485423,0.00826,60900.0,60899.0,0.37708145]
[1724143486103,0.00826,60900.0,60899.0,0.37707924]
[1724143486341,0.00826,60900.0,60899.0,0.36307924]
[1724143487187,0.00826,60900.0,60899.0,0.3139918]
[1724143487598,0.00826,60900.0,60899.0,0.38762224]
[1724143487819,0.00826,60900.0,60899.0,0.3279918]
[1724143488029,0.00826,60900.0,60899.0,0.76891136]
[1724143488246,0.00826,60900.0,60899.0,0.40162224]
[1724143488461,0.00826,60900.0,60899.0,0.3279918]
[1724143488886,0.00826,60900.0,60899.0,0.21323369]
[1724143489332,0.00826,60900.0,60899.0,0.16415809]
[1724143490699,0.48019671,60900.0,60899.0,0.028]
[1724143490909,1.13801071,60900.0,60899.0,0.028]
[1724143491147,1.46641771,60900.0,60899.0,0.028]
[1724143491635,1.46641771,60900.0,60899.0,0.014]
[1724143491873,0.821085,60895.0,60894.0,0.0009075]
[1724143492106,1.12881871,60895.0,60894.0,0.0009075]
[1724143493821,0.80038471,60895.0,60894.0,0.0009075]
[1724143494488,0.80538471,60895.0,60894.0,0.0019075]
[1724143494928,1.13381871,60895.0,60894.0,0.0019075]
[1724143495144,0.313117,60895.0,60894.0,0.0019075]
[1724143499075,0.310117,60895.0,60894.0,0.0019075]
[1724143500224,0.308117,60895.0,60894.0,0.0009075]
[1724143501088,0.636551,60895.0,60894.0,0.0019075]
[1724143501315,0.637551,60895.0,60894.0,0.0019075]
[1724143501535,0.636551,60895.0,60894.0,0.0019075]
[1724143501752,0.637551,60895.0,60894.0,0.0019075]
[1724143503561,1.45825271,60895.0,60894.0,0.0019075]
[1724143506451,1.12981871,60895.0,60894.0,0.0019075]
[1724143508588,1.21183871,60895.0,60894.0,0.0019075]
[1724143510704,0.719571,60895.0,60894.0,0.0019075]
[1724143510915,0.391137,60895.0,60894.0,0.0019075]
[1724143511344,0.22692,60895.0,60894.0,0.0019075]
[1724143511554,0.08302,60895.0,60894.0,0.0019075]
[1724143516682,0.08302,60895.0,60894.0,0.03807168]
[1724143516889,0.08302,60895.0,60894.0,0.0019075]
[1724143517097,0.08202,60895.0,60894.0,0.0019075]
[1724143517502,0.08302,60895.0,60894.0,0.03807168]
[1724143517712,0.08302,60895.0,60894.0,0.0009075]
[1724143517914,0.08302,60895.0,60894.0,0.0039075]
[1724143518332,0.08302,60895.0,60894.0,0.04007168]
[1724143523089,0.08302,60895.0,60894.0,0.18567168]
[1724143524414,0.08302,60895.0,60894.0,0.04007168]
[1724143528077,0.08302,60895.0,60894.0,0.04007159]
[1724143530555,0.08302,60895.0,60894.0,0.15197159]
[1724143532188,0.083846,60895.0,60894.0,0.15197141]
[1724143532541,0.083846,60895.0,60894.0,0.16494514]
[1724143532792,0.083846,60895.0,60894.0,0.44154143]
[1724143533031,0.083846,60895.0,60894.0,0.46414443]
[1724143533233,0.083846,60895.0,60894.0,0.98874381]
[1724143533736,0.082846,60895.0,60894.0,0.98874381]
[1724143533971,0.082846,60895.0,60894.0,0.98873677]
[1724143534175,0.082846,60895.0,60894.0,0.99173677]
[1724143534381,0.082846,60895.0,60894.0,0.98573677]
[1724143534797,0.082846,60895.0,60894.0,0.99473677]
[1724143535007,0.082846,60895.0,60894.0,1.05705112]
[1724143535211,0.082846,60895.0,60894.0,0.93418214]
[1724143535618,0.082846,60895.0,60894.0,0.9341894]
[1724143535824,0.082846,60895.0,60894.0,0.9461894]
[1724143536182,0.082846,60895.0,60894.0,0.93419149]
[1724143536380,0.082846,60895.0,60894.0,1.11763056]
[1724143536671,0.082846,60895.0,60894.0,1.06203426]
[1724143536888,0.082846,60895.0,60894.0,1.07107449]
[1724143537020,0.082846,60895.0,60894.0,1.13163056]
[1724143537223,0.082846,60895.0,60894.0,1.07107449]
[1724143537427,0.082846,60895.0,60894.0,1.13163056]
[1724143537682,0.082846,60895.0,60894.0,1.07107449]
[1724143537895,0.082846,60895.0,60894.0,1.13163056]
[1724143538101,0.082846,60895.0,60894.0,1.07107449]
[1724143538314,0.082846,60895.0,60894.0,1.00874756]
[1724143540403,0.082846,60895.0,60894.0,1.00874767]
[1724143541428,0.000826,60899.0,60894.0,0.94819155]
[1724143541633,0.000826,60899.0,60898.0,0.1119]
[1724143541841,0.000826,60899.0,60898.0,0.42421866]
[1724143542059,0.000826,60899.0,60898.0,0.78824887]
[1724143542469,0.000826,60899.0,60898.0,0.86334887]
[1724143543820,0.000826,60899.0,60898.0,0.86734887]
[1724143544295,0.000826,60899.0,60898.0,0.87734418]
[1724143544536,0.000826,60899.0,60898.0,0.87334418]
[1724143545005,0.000826,60899.0,60898.0,0.87934418]
[1724143545223,0.000826,60899.0,60898.0,0.95303201]
[1724143545434,0.000826,60899.0,60898.0,0.86934418]
[1724143545911,0.000826,60899.0,60898.0,0.88134418]
[1724143546195,0.000826,60899.0,60898.0,0.88134401]
[1724143546451,0.011976,60928.0,60911.0,0.0635]
[1724143546712,0.011976,60928.0,60916.0,0.003]
[1724143546952,0.011976,60928.0,60918.0,0.1821]
[1724143547199,0.011976,60928.0,60918.0,1.26086506]
[1724143547468,0.011976,60928.0,60918.0,2.17980752]
[1724143547716,0.011976,60928.0,60918.0,2.56867027]
[1724143548201,0.011976,60928.0,60918.0,2.56862609]
[1724143548445,0.011976,60928.0,60918.0,2.52864102]
[1724143548688,0.011976,60928.0,60918.0,2.36383102]
[1724143548902,0.011976,60928.0,60918.0,1.30552102]
[1724143549095,0.011976,60928.0,60918.0,1.63583102]
[1724143549304,0.011976,60928.0,60918.0,3.25801154]
[1724143549513,0.011976,60928.0,60918.0,3.31854624]
[1724143549716,0.011976,60928.0,60925.0,0.0835]
[1724143549924,0.011976,60928.0,60925.0,0.90224922]
[1724143550131,0.011976,60928.0,60925.0,0.8532879]
[1724143550335,0.011976,60928.0,60925.0,0.90021629]
[1724143550742,0.011976,60928.0,60925.0,0.84800589]
[1724143550948,0.011976,60928.0,60925.0,0.87600589]
[1724143551363,0.011976,60928.0,60925.0,0.84186971]
[1724143551573,0.011976,60928.0,60925.0,0.87800589]
[1724143551777,0.011976,60928.0,60925.0,0.8907981]
[1724143551980,0.011976,60928.0,60925.0,0.92893322]
[1724143552184,0.011976,60928.0,60925.0,0.88000483]
[1724143552385,0.011976,60928.0,60925.0,0.84386971]
[1724143552792,0.011976,60928.0,60925.0,1.17214171]
[1724143552995,0.00214299,60926.0,60925.0,1.17214171]
[1724143553403,0.00214299,60926.0,60925.0,1.22123219]
[1724143554242,0.00214299,60926.0,60925.0,1.28783219]
[1724143555054,0.00214299,60926.0,60925.0,0.95556019]
[1724143555668,0.00296899,60926.0,60925.0,1.28583219]
[1724143555981,0.00296899,60926.0,60925.0,1.28383219]
[1724143556193,0.00296899,60926.0,60925.0,1.2934408]
[1724143556396,1e-08,60929.0,60928.0,0.001]
[1724143556638,1e-08,60929.0,60928.0,0.16483371]
[1724143556960,1e-08,60929.0,60928.0,0.54651539]
[1724143557161,0.00313235,60929.0,60928.0,0.54323371]
[1724143557651,1e-08,60929.0,60928.0,0.55723371]
[1724143558903,1e-08,60929.0,60928.0,0.57123371]
[1724143559230,1e-08,60929.0,60928.0,0.54323371]
[1724143559580,1e-08,60929.0,60928.0,0.57023371]
[1724143559795,1e-08,60929.0,60928.0,1.51963371]
[1724143560003,1e-08,60929.0,60928.0,1.54263371]
[1724143560205,1e-08,60929.0,60928.0,0.73263371]
[1724143560410,1e-08,60929.0,60928.0,1.58263371]
[1724143560610,1e-08,60929.0,60928.0,1.61876932]
[1724143561784,1e-08,60929.0,60928.0,0.76876932]
[1724143561998,1e-08,60929.0,60928.0,0.73263371]
[1724143563402,0.0793,60938.0,60928.0,0.67163371]
[1724143563600,0.0793,60938.0,60934.0,0.2794]
[1724143563807,0.0793,60938.0,60935.0,0.16383371]
[1724143564017,0.0793,60938.0,60936.0,0.1]
[1724143564163,0.0793,60938.0,60937.0,0.16383371]
[1724143564367,0.0793,60938.0,60937.0,0.26383371]
[1724143564368,0.1427,60938.0,60937.0,0.26383371]
[1724143564570,0.14582868,60938.0,60937.0,0.26383371]
[1724143565485,0.14582868,60938.0,60937.0,0.1]
[1724143565689,0.14582868,60938.0,60935.0,0.1]
[1724143565893,0.14582868,60938.0,60937.0,0.009]
[1724143566538,0.14582868,60938.0,60937.0,0.012]
[1724143566737,0.14582868,60938.0,60937.0,0.003]
[1724143567918,0.14665468,60938.0,60937.0,0.003]
[1724143568930,0.14665468,60938.0,60937.0,0.012]
[1724143570123,0.14665468,60938.0,60937.0,0.009]
[1724143570537,0.14765468,60938.0,60937.0,0.009]
[1724143571150,0.14765468,60938.0,60922.0,0.00971678]
[1724143571151,0.0778,60935.0,60922.0,0.00971678]
[1724143571487,0.0778,60935.0,60923.0,0.16383371]
[1724143571694,0.1416,60932.0,60924.0,0.1]
[1724143571830,0.1416,60932.0,60925.0,0.16383371]
[1724143572054,0.1416,60932.0,60926.0,0.1]
[1724143572055,0.00313758,60931.0,60926.0,0.1]
[1724143572245,0.1416,60932.0,60927.0,0.16383371]
[1724143572506,0.1416,60932.0,60928.0,0.1]
[1724143574686,0.1416,60932.0,60930.0,0.03]
[1724143575306,0.1416,60932.0,60930.0,0.025]
[1724143575496,0.1416,60932.0,60931.0,0.0361425]
[1724143575878,0.14470762,60932.0,60931.0,0.0361425]
[1724143576084,0.1416,60932.0,60931.0,0.0361425]
[1724143576403,0.14470762,60932.0,60931.0,0.04517702]
[1724143576753,0.14470762,60932.0,60931.0,0.04917702]
[1724143576954,0.14470762,60932.0,60931.0,0.0401425]
[1724143577199,0.14470762,60932.0,60931.0,0.04917702]
[1724143577401,0.14470762,60932.0,60931.0,0.0401425]
[1724143577604,0.14470762,60932.0,60931.0,0.0501425]
[1724143578544,0.14470762,60932.0,60931.0,0.05014255]
[1724143578739,0.14470762,60932.0,60931.0,0.0862851]
[1724143578996,0.14470762,60932.0,60931.0,0.1862851]
[1724143579387,0.1416,60932.0,60931.0,0.1862851]
[1724143579578,0.14465844,60932.0,60931.0,0.1862851]
[1724143579910,0.14548444,60932.0,60931.0,0.1862851]
[1724143582619,0.14548444,60932.0,60931.0,0.15014255]
[1724143582793,0.14548444,60932.0,60930.0,0.0112851]
[1724143583197,0.14548444,60932.0,60930.0,0.02032073]
[1724143583520,0.14548444,60932.0,60930.0,0.0112851]
[1724143583735,0.14548444,60932.0,60930.0,0.02032073]
[1724143583954,0.14548444,60932.0,60930.0,0.0112851]
[1724143584146,0.14548444,60932.0,60930.0,0.02032073]
[1724143584349,0.14548444,60932.0,60930.0,0.0212851]
[1724143584634,0.14548444,60932.0,60930.0,0.03032073]
[1724143584835,0.14548444,60932.0,60930.0,0.0212851]
[1724143585139,0.14548444,60932.0,60930.0,0.03432073]
[1724143585435,0.14548444,60932.0,60931.0,0.00903563]
[1724143585862,0.14548444,60932.0,60930.0,0.0252851]
[1724143586065,0.14548444,60932.0,60931.0,0.00903558]
[1724143586521,0.14548444,60932.0,60931.0,0.12083558]
[1724143586769,0.00388444,60932.0,60931.0,0.38766929]
[1724143587246,0.000826,60932.0,60931.0,0.38766929]
[1724143587746,0.001826,60932.0,60931.0,0.39566929]
[1724143588655,0.001826,60932.0,60931.0,0.23183558]
[1724143588881,0.081026,60932.0,60931.0,0.23183558]
[1724143589196,0.08413217,60932.0,60931.0,0.23183558]
[1724143589418,0.00493217,60932.0,60931.0,0.23183558]
[1724143589644,0.00493217,60932.0,60931.0,0.39566929]
[1724143589897,0.001826,60932.0,60931.0,0.39566929]
[1724143590562,0.001826,60932.0,60931.0,0.39566893]
[1724143592251,0.001826,60932.0,60931.0,0.75951508]
[1724143592861,0.001826,60932.0,60931.0,0.9419795]
[1724143593266,0.001826,60932.0,60931.0,0.94226997]
[1724143593875,0.001826,60932.0,60931.0,0.83046997]
[1724143594070,0.001826,60932.0,60931.0,0.94226997]
[1724143594491,0.001826,60932.0,60931.0,0.94226823]
[1724143594898,0.001826,60932.0,60931.0,0.97840758]
[1724143595497,0.001826,60932.0,60931.0,1.05640758]
[1724143595695,0.001826,60932.0,60931.0,1.11960758]
[1724143596212,0.001826,60932.0,60931.0,0.99669063]
[1724143597885,0.001826,60932.0,60931.0,0.99667511]
[1724143599376,1e-08,60932.0,60931.0,0.99667511]
[1724143600009,1e-08,60932.0,60931.0,0.99664548]
[1724143601216,1e-08,60932.0,60931.0,0.85544548]
[1724143602319,1e-08,60932.0,60931.0,0.84641065]
[1724143602452,1e-08,60932.0,60931.0,0.85542403]
[1724143602803,1e-08,60932.0,60931.0,0.98293495]
[1724143603447,1e-08,60932.0,60931.0,0.94679999]
[1724143603654,1e-08,60932.0,60931.0,0.98293495]
[1724143606236,0.00082601,60932.0,60931.0,0.98293495]
[1724143607170,0.00082601,60932.0,60931.0,0.47163715]
[1724143607365,0.00082601,60932.0,60931.0,0.98290662]
[1724143608119,0.00082601,60932.0,60931.0,0.83542498]
[1724143609374,0.00082601,60932.0,60931.0,0.98290662]
[1724143610087,0.00082601,60932.0,60931.0,0.83542498]
[1724143610449,0.00082601,60932.0,60931.0,0.68269412]
[1724143610450,0.07712601,60932.0,60931.0,0.68269412]
[1724143610671,0.07712601,60932.0,60931.0,0.61175653]
[1724143610806,0.07712601,60932.0,60931.0,0.71008043]
[1724143611011,0.07712601,60932.0,60931.0,0.61175653]
[1724143611012,0.13742601,60932.0,60931.0,0.61175653]
[1724143611330,0.137426,60932.0,60931.0,0.60375653]
[1724143611646,0.137426,60932.0,60931.0,0.60075653]
[1724143611868,0.137426,60932.0,60931.0,0.61380793]
[1724143611869,0.138426,60932.0,60931.0,0.61380793]
[1724143612010,0.138426,60932.0,60931.0,0.62080793]
[1724143612623,0.13822847,60932.0,60931.0,0.62080793]
[1724143612840,0.13822847,60932.0,60931.0,0.71913738]
[1724143613243,0.13822847,60932.0,60931.0,0.42900793]
[1724143613444,0.13822847,60932.0,60931.0,0.25071747]
[1724143613650,0.13822847,60932.0,60931.0,0.6145567]
[1724143614435,0.13822847,60932.0,60931.0,0.57842312]
[1724143614642,0.13822847,60932.0,60931.0,0.61456363]
[1724143615758,0.13822847,60932.0,60931.0,0.61456735]
[1724143616207,0.13822847,60932.0,60931.0,0.54081924]
[1724143616440,0.13822847,60932.0,60931.0,0.54081791]
[1724143618001,0.13822847,60932.0,60931.0,0.50467739]
[1724143618208,0.13822847,60932.0,60931.0,0.54081786]
[1724143618937,0.13822847,60932.0,60931.0,0.54172646]
[1724143619138,0.1413348,60932.0,60931.0,0.54172646]
[1724143619753,0.13822847,60932.0,60931.0,0.54172646]
[1724143620720,0.13822847,60932.0,60931.0,0.42992646]
[1724143620721,0.1413348,60932.0,60931.0,0.42992646]
[1724143620929,0.1413348,60932.0,60931.0,0.54172646]
[1724143621134,0.1413348,60932.0,60931.0,0.5417265]
[1724143622722,0.1413348,60932.0,60931.0,0.06608422]
[1724143622925,0.1413348,60932.0,60931.0,0.0660856]
[1724143623122,0.1413348,60932.0,60931.0,0.11526049]
[1724143623768,0.6336858,60932.0,60931.0,0.0570502]
[1724143624005,1.45398751,60932.0,60931.0,0.0209086]
[1724143624151,1.78322151,60932.0,60931.0,0.0209086]
[1724143624548,1.78722151,60932.0,60931.0,0.0209086]
[1724143624788,1.85615588,60932.0,60931.0,0.0079086]
[1724143624988,1.15184,60931.0,60930.0,0.0009086]
[1724143625167,1.57217646,60931.0,60930.0,0.0009086]
[1724143625364,1.90041646,60931.0,60930.0,0.0009086]
[1724143625968,1.89741646,60931.0,60930.0,0.0009086]
[1724143626342,1.90041646,60931.0,60930.0,0.0009086]
[1724143626755,1.90341646,60931.0,60930.0,0.0019086]
[1724143627776,1.90941646,60931.0,60930.0,0.0029086]
[1724143627982,1.90641646,60931.0,60930.0,0.0019086]
[1724143628390,1.91041646,60931.0,60930.0,0.0029086]
[1724143628723,1.90641646,60931.0,60930.0,0.0019086]
[1724143628954,2.07039524,60931.0,60930.0,0.0019086]
[1724143629164,2.07039524,60931.0,60928.0,0.0009086]
[1724143629165,1.623725,60929.0,60928.0,0.0009086]
[1724143629372,1.79064673,60929.0,60928.0,0.0009086]
[1724143631250,1.79364673,60929.0,60928.0,0.0019086]
[1724143631454,1.79764673,60929.0,60928.0,0.0029086]
[1724143632058,1.79464673,60929.0,60928.0,0.0019086]
[1724143632261,1.79064673,60929.0,60928.0,0.0009086]
[1724143632467,1.79064673,60929.0,60928.0,0.0029086]
[1724143632468,1.79364673,60929.0,60928.0,0.0029086]
[1724143632682,1.79864673,60929.0,60928.0,0.0029086]
[1724143635532,1.96262551,60929.0,60928.0,0.0029086]
[1724143635741,2.31387551,60929.0,60928.0,0.0029086]
[1724143636698,2.14989673,60929.0,60928.0,0.0029086]
[1724143639276,2.67889673,60929.0,60928.0,0.0029086]
[1724143639493,2.77989673,60929.0,60928.0,0.0029086]
[1724143640331,2.78953639,60929.0,60928.0,0.0029086]
[1724143640529,2.78953639,60929.0,60900.0,0.005]
[1724143640530,0.492601,60901.0,60900.0,0.005]
[1724143640930,0.49563864,60901.0,60900.0,0.005]
[1724143641156,0.82403964,60901.0,60900.0,0.005]
[1724143641712,0.82403964,60901.0,60900.0,0.007]
[1724143641713,0.94283964,60901.0,60900.0,0.007]
[1724143641933,1.15544064,60901.0,60900.0,0.006]
[1724143642366,1.15944064,60901.0,60900.0,0.007]
[1724143642542,1.30214064,60901.0,60900.0,0.007]
[1724143642744,1.30214064,60901.0,60900.0,0.006]
[1724143642968,1.30214064,60901.0,60900.0,0.007]
[1724143642969,1.46997435,60901.0,60900.0,0.007]
[1724143643252,1.46697435,60901.0,60900.0,0.006]
[1724143643622,1.46997435,60901.0,60900.0,0.006]
[1724143643941,1.46697435,60901.0,60900.0,0.006]
[1724143644351,1.57777435,60901.0,60900.0,0.006]
[1724143644729,1.57777435,60901.0,60900.0,0.007]
[1724143644730,1.59077435,60901.0,60900.0,0.007]
[1724143648438,1.47897435,60901.0,60900.0,0.007]
[1724143652105,1.59077435,60901.0,60900.0,0.007]
[1724143652514,1.59377435,60901.0,60900.0,0.007]
[1724143653819,1.59077435,60901.0,60900.0,0.007]
[1724143654722,1.59377435,60901.0,60900.0,0.007]
[1724143655560,1.59377435,60901.0,60900.0,0.0079086]
[1724143660169,1.59077435,60901.0,60900.0,0.0079086]
[1724143663522,1.92017535,60901.0,60900.0,0.0079086]
[1724143663717,2.08815413,60901.0,60900.0,0.0079086]
[1724143664532,1.92417535,60901.0,60900.0,0.0079086]
[1724143665203,1.91117535,60901.0,60900.0,0.0069086]
[1724143665418,1.91817535,60901.0,60900.0,0.0069086]
[1724143665778,1.93017535,60901.0,60900.0,0.0069086]
[1724143666238,1.91817535,60901.0,60900.0,0.0069086]
[1724143666733,1.93017535,60901.0,60900.0,0.0069086]
[1724143668183,1.94003018,60901.0,60900.0,0.0069086]
[1724143668614,2.03783255,60901.0,60900.0,0.0069086]
[1724143670218,1.94003018,60901.0,60900.0,0.0069086]
[1724143671486,1.96303018,60901.0,60900.0,0.0069086]
[1724143673507,2.03314526,60901.0,60900.0,0.0069086]
[1724143678725,1.92134526,60901.0,60900.0,0.0069086]
[1724143678932,2.03314526,60901.0,60900.0,0.0069086]
[1724143679135,2.03302971,60901.0,60900.0,0.0069086]
[1724143681295,2.02317488,60901.0,60900.0,0.0069086]
[1724143682554,1.55497388,60901.0,60900.0,0.0069086]
[1724143682924,1.4848588,60901.0,60900.0,0.0069086]
[1724143683063,1.3421588,60901.0,60900.0,0.0069086]
[1724143685997,1.4539588,60901.0,60900.0,0.0069086]
[1724143688370,1.3421588,60901.0,60900.0,0.0069086]
[1724143688630,0.6853568,60901.0,60900.0,0.0069086]
[1724143688840,0.6853568,60901.0,60900.0,0.0830086]
[1724143688841,0.3569558,60901.0,60900.0,0.0830086]
[1724143688981,0.6853568,60901.0,60900.0,0.0830086]
[1724143689189,0.3569558,60901.0,60900.0,0.1441086]
[1724143689392,0.6853568,60901.0,60900.0,0.1441086]
[1724143690049,0.6733568,60901.0,60900.0,0.1441086]
[1724143690400,0.17912209,60901.0,60900.0,0.1431086]
[1724143690995,0.18112209,60901.0,60900.0,0.1431086]
[1724143691195,0.16712209,60901.0,60900.0,0.1431086]
[1724143691417,0.18112209,60901.0,60900.0,0.1431086]
[1724143692023,0.19012209,60901.0,60900.0,0.1431086]
[1724143692819,0.02603764,60901.0,60900.0,0.1431086]
[1724143693391,0.19023764,60901.0,60900.0,0.1431086]
[1724143694194,0.02603764,60901.0,60900.0,0.1431086]
[1724143694960,0.51863864,60901.0,60900.0,0.0820086]
[1724143695189,0.51863864,60901.0,60900.0,0.0059086]
[1724143695801,1.12267335,60901.0,60900.0,0.0059086]
[1724143696022,1.53677435,60901.0,60900.0,0.0059086]
[1724143696174,1.53377435,60901.0,60900.0,0.0059086]
[1724143697811,1.59577435,60901.0,60900.0,0.0059086]